Cogmind - Beta 16.1 @@@ ROGUE MODE // 2026.06.18 @ 14:02:11 Player: Lolterzard Result: Destroyed by P-60 Hacker with Shock Rifle Performance ------------- Evolutions (3) 1500 Regions Visited (10) 2000 Robots Destroyed (117) 585 Value Destroyed (3184) 3184 Prototype IDs (27) 540 Alien Tech Used (0) 0 Bonus (534) 534 TOTAL SCORE: 8343 Bonus ------- Follower Combat Kills 249 Aligned with FarCom 300 Friendly Fire -15 Cogmind --------- Core Integrity 0/700 Matter 10/300 Energy 219/240 System Corruption 27% Temperature Cool (0) Movement Hovering (360) Ox5 Location -7/Factory Parts ------- > --- POWER (2) -------- Nuclear Core > --- PROPULSION (5) --- Airjet > --- UTILITY (4) ------ Improved Heat Sink High-capacity Storage Unit 0b10 Alert Chip > --- WEAPON (2) ------- Autogun Autogun > --- INVENTORY (20) --- Improved Ion Engine Nuclear Core Huge Storage Unit Heavy Assault Rifle Autogun Autogun Autogun Improved Assault Rifle Minigun Gauss Rifle Flak Gun Peak State ------------ > --- POWER ------------ Nuclear Core Cooled Deuterium Engine > --- PROPULSION ------- Aerolev Unit Gravmag System Gravmag System Gravmag System Gravmag System > --- UTILITY ---------- High-capacity Storage Unit 0b10 Alert Chip Improved Weapon Shielding Improved Light Armor Plating > --- WEAPON ----------- Improved Assault Rifle Flak Gun > --- INVENTORY -------- Improved Ion Engine Armored Treads Improved Hover Unit Airjet Improved Heat Sink Huge Storage Unit Improved Light Armor Plating Heavy Assault Rifle Autogun Autogun Autogun Autogun Autogun Autogun Autogun Minigun High-powered Shotgun Gauss Rifle Missile Launcher [Rating: 52] Favorites ----------- Power Improved Ion Engine Engine Improved Ion Engine Power Core Nuclear Core Propulsion Light Treads Treads Light Treads Hover Unit Gravmag System Utility Huge Storage Unit Device Seismic Detector Storage Huge Storage Unit Processor 0b10 Alert Chip Protection Medium Armor Plating Weapon Autogun Energy Gun EM Pulse Gun Ballistic Gun Autogun Launcher Missile Launcher Build | -11 -10 -10 -9 -9 -9 -8 -8 -7 -7 -7 ------- Run | Yrd Mat Min Mat Min Exi Min Mat Fac Was Fac Slots Evolved 6 | . . . 2 . . . 2 2 . . Power 1 | . . . . . . . . 1 . . Propulsion 3 | . . . 1 . . . 2 . . . Utility 2 | . . . 1 . . . . 1 . . Weapon . | . . . . . . . . . . . Parts Attached 86 | 7 3 . 5 2 . . 23 30 4 12 Power 13 | 1 1 . 1 . . . 2 5 . 3 Engine 10 | 1 1 . 1 . . . 2 4 . 1 Core 3 | . . . . . . . . 1 . 2 Reactor . | . . . . . . . . . . . Propulsion 33 | 2 . . 2 1 . . 9 14 4 1 Treads 23 | 2 . . 2 1 . . 8 10 . . Leg . | . . . . . . . . . . . Wheel . | . . . . . . . . . . . Hover 10 | . . . . . . . 1 4 4 1 Flight . | . . . . . . . . . . . Utility 20 | 2 . . 2 . . . 6 8 . 2 Device 2 | 1 . . . . . . . . . 1 Storage 3 | 1 . . 1 . . . . 1 . . Processor 1 | . . . . . . . . 1 . . Hackware . | . . . . . . . . . . . Protection 14 | . . . 1 . . . 6 6 . 1 Artifact . | . . . . . . . . . . . Weapon 20 | 2 2 . . 1 . . 6 3 . 6 Energy Gun 2 | 2 . . . . . . . . . . Energy Cannon . | . . . . . . . . . . . Ballistic Gun 17 | . 2 . . 1 . . 6 3 . 5 Ballistic Cannon . | . . . . . . . . . . . Launcher 1 | . . . . . . . . . . 1 Special Weapon . | . . . . . . . . . . . Impact Weapon . | . . . . . . . . . . . Slashing Weapon . | . . . . . . . . . . . Piercing Weapon . | . . . . . . . . . . . Special Melee Weapon . | . . . . . . . . . . . Unidentified Prototypes 4 | . . . . . . . 2 . . 2 Parts Lost 45 | . . . . 1 . 3 10 15 2 14 Power 8 | . . . . . . . 1 4 1 2 Propulsion 16 | . . . . . . 2 3 5 . 6 Utility 15 | . . . . . . 1 5 5 1 3 Weapon 6 | . . . . 1 . . 1 1 . 3 Highest Loss Streak 14 | . . . . 1 . 3 5 3 2 14 To Critical Strikes 1 | . . . . 1 . . . . . . Average Backups 19 | 5 7 8 11 20 21 20 23 24 20 18 Power 1 | . 1 1 1 3 3 3 2 1 . 1 Propulsion 4 | 3 . . 1 3 4 2 5 7 5 2 Utility 5 | . 3 4 3 5 6 7 7 4 4 2 Weapon 8 | . 2 3 4 8 8 8 8 10 11 11 Tool/Special . | . . . . . . . . . . . Unused Backups 22 | . 8 . . . . . 5 4 . 5 Power 2 | . 1 . . . . . . . . 1 Propulsion 8 | . 5 . . . . . 2 1 . . Utility 2 | . . . . . . . 1 1 . . Weapon 10 | . 2 . . . . . 2 2 . 4 Tool/Special . | . . . . . . . . . . . Average Slot Usage (%) 95 | . 100 100 96 99 100 89 92 91 88 90 Engine 10 | . 14 14 11 11 11 11 8 11 11 8 Treads 31 | . 28 28 29 33 33 31 39 33 2 . Hover 2 | . . . . . . . . . 28 34 Device 5 | . 14 14 11 11 11 2 . . . . Storage 9 | . 14 14 11 11 11 11 9 7 7 7 Processor 2 | . . . . . . . . 6 7 7 Protection 11 | . . . 11 11 11 11 16 14 13 13 Ballistic Gun 19 | . 25 28 22 21 22 22 18 15 15 14 Peak Build Rating 52 | 7 10 10 16 16 17 17 37 47 50 52 Average Rating 26 | 5 9 10 13 15 16 15 30 38 44 46 On Entrance 18 | . 7 10 10 16 16 17 15 31 47 36 Avg Prop Armor Cover (%) 20 | 36 . . . . . . 6 13 . . Naked Turns . | . . . . . . . . . . . Heaviest Build 114 | 13 17 17 101 101 101 101 108 114 74 72 Greatest Support 132 | 40 40 40 60 60 60 60 132 124 50 48 Greatest Overweight (x) 22 | 3 . . 2 1 1 1 5 22 1 16 Average Overweight (x) . | . . . . 1 1 1 . 1 1 1 Largest Inventory Capacity 25 | 8 8 8 25 25 25 25 25 25 25 20 Average Capacity 21 | 7 8 8 20 25 25 25 25 24 20 20 Most Carried 25 | 6 8 8 19 21 22 22 25 25 25 20 Average Carried 19 | 5 7 8 11 20 21 20 23 24 20 18 Final Capacity 25 | 8 8 8 25 25 25 25 25 25 20 20 Final Carried 25 | 6 8 8 19 21 22 20 25 25 20 11 Class Distribution -------------------- 71% | Mutant 28% | Scavenger-Mutant Dominant Class ---------------- Mutant | -10/Materials Mutant | -10/Mines Mutant | -9/Materials Scavenger-Mutant | -9/Mines Scavenger-Mutant | -9/Exiles Mutant | -8/Mines Mutant | -8/Materials Mutant | -7/Factory Scavenger-Mutant | -7/Waste Scavenger-Mutant | -7/Factory Resources | -11 -10 -10 -9 -9 -9 -8 -8 -7 -7 -7 ----------- Run | Yrd Mat Min Mat Min Exi Min Mat Fac Was Fac Matter Collected 3874 | 264 183 112 207 75 . 90 1420 1438 . 85 Remotely . | . . . . . . . . . . . Salvage Created 4518 | 93 354 133 282 49 . 159 1740 1552 . 156 Parts 268 | 12 16 7 11 8 . 6 102 96 . 10 Haulers Intercepted 7 | . . . 1 . . . 5 1 . . Recyclers Shooed 10 | 2 1 1 1 . . . 2 3 . . Parts Field Recycled . | . . . . . . . . . . . Retrieved Matter . | . . . . . . . . . . . Parts Self-Destructed . | . . . . . . . . . . . Prevented . | . . . . . . . . . . . Parts Restored . | . . . . . . . . . . . Kills | -11 -10 -10 -9 -9 -9 -8 -8 -7 -7 -7 ------- Run | Yrd Mat Min Mat Min Exi Min Mat Fac Was Fac Combat Hostiles Destroyed 78 | . 8 6 1 2 . 3 25 30 . 3 Guns 76 | . 8 6 1 2 . 3 25 30 . 1 AOE 2 | . . . . . . . . . . 2 Classes Destroyed 14 | 2 3 1 2 . . . 3 2 . 1 Worker 7 | 1 . . . . . . 2 3 . 1 Builder 3 | . . . . . . . 1 2 . . Tunneler 6 | 3 . . . 1 . . 2 . . . Hauler 7 | . . . 1 . . . 5 1 . . Recycler 13 | . 2 . 3 . . . 2 6 . . Mechanic 1 | . . . . . . . . 1 . . Watcher 3 | . . . 1 . . . 2 . . . Swarmer 27 | . 6 3 1 2 . . 3 12 . . Grunt 30 | . 2 2 . . . 3 15 6 . 2 Duelist 1 | . . . . . . . . . . 1 Sentry 7 | . . . . . . . 5 2 . . Hunter 6 | . . . . . . . 2 4 . . Programmer 6 | . . . . . . . . 6 . . Assembled 1 | . . 1 . . . . . . . . Best Kill Streak 5 | 3 3 4 3 2 . 3 4 5 . 2 Combat Bots Only 5 | . 3 2 1 2 . 3 3 5 . 2 Max Kills in Single Turn 2 | 1 1 2 1 1 . 1 2 2 . 2 Gunslinging 1 | . . 1 . . . . . 1 . . Exploded 2 | . . . . . . . . . . 2 Melee . | . . . . . . . . . . . Uniques/NPCs Destroyed . | . . . . . . . . . . . Combat | -11 -10 -10 -9 -9 -9 -8 -8 -7 -7 -7 -------- Run | Yrd Mat Min Mat Min Exi Min Mat Fac Was Fac Hostile Shots Fired 817 | . 40 15 4 31 . 22 212 381 2 110 Missed 224 | . 9 5 1 8 . 4 61 114 . 22 Hits 593 | . 31 10 3 23 . 18 151 267 2 88 Melee 13 | . . 1 . . . . . . 2 10 Projectile 580 | . 31 9 3 23 . 18 151 267 . 78 AOE 2 | . . . . . . . . 2 . . Critical Strikes 22 | . . 1 . 1 . . 3 8 1 8 Actively Blocked 2 | . . . . . . . 1 1 . . Part Disruptions 1 | . . . . . . . . 1 . . Damage Taken 8464 | . 267 140 88 228 . 301 2139 3567 106 1628 Core 1052 | . 17 86 . 10 . 31 197 245 57 409 Absorbed by Shields . | . . . . . . . . . . . Redirected to Shielding 261 | . . . . . . . 101 50 . 110 Regen/Repaired (Parts) 105 | . . . . . . . 105 . . . Core Remaining (%) 77 | 100 . 58 . . . 89 64 . . . Volleys Fired 388 | 10 23 11 20 8 . 10 155 138 . 13 Largest 2 | 2 2 2 2 2 . 2 2 2 . 2 Hottest 90 | 90 46 46 46 46 . 46 46 53 . 61 Shots Fired 762 | 20 46 22 40 15 . 20 308 265 . 26 Gun 760 | 20 46 22 40 15 . 20 308 265 . 24 Cannon . | . . . . . . . . . . . Launcher 2 | . . . . . . . . . . 2 Special . | . . . . . . . . . . . Kinetic 740 | . 46 22 40 15 . 20 308 265 . 24 Thermal 10 | 10 . . . . . . . . . . Explosive 2 | . . . . . . . . . . 2 Electromagnetic 10 | 10 . . . . . . . . . . Robot Hit Streak 16 | 7 3 11 8 3 . 7 16 14 . 6 Robot Miss Streak 8 | 3 5 4 5 4 . 1 3 8 . 2 Penetration Max . | . . . . . . . . . . . Secondary Targets 7 | . . 1 . . . 2 1 3 . . Max Gunslinging Chain 1 | . . 1 . . . 1 1 1 . . Shots Hit Robots 487 | 12 18 14 19 6 . 13 197 191 . 17 Core Hits 250 | 4 11 7 6 4 . 8 77 122 . 11 Critical Kills 1 | . . . . . . . 1 . . . Critical Parts Destroyed 2 | . 1 . . . . . . 1 . . Critical Strikes 3 | . 1 . . . . . 1 1 . . Destroy 3 | . 1 . . . . . 1 1 . . Melee Attacks . | . . . . . . . . . . . Impact . | . . . . . . . . . . . Slashing . | . . . . . . . . . . . Piercing . | . . . . . . . . . . . Sneak Attacks . | . . . . . . . . . . . Combat Hostiles . | . . . . . . . . . . . Follow-up Attacks . | . . . . . . . . . . . Damage Inflicted 8240 | 170 287 219 310 118 . 203 2997 3309 . 627 Guns 7742 | 170 265 217 304 81 . 196 2968 3265 . 276 Cannons . | . . . . . . . . . . . Explosions 336 | . . . . . . . . . . 336 Melee . | . . . . . . . . . . . Ramming 162 | . 22 2 6 37 . 7 29 44 . 15 Kinetic 7572 | . 265 217 304 81 . 196 2968 3265 . 276 Thermal 76 | 76 . . . . . . . . . . Explosive 336 | . . . . . . . . . . 336 Electromagnetic 94 | 94 . . . . . . . . . . Impact . | . . . . . . . . . . . Slashing . | . . . . . . . . . . . Piercing . | . . . . . . . . . . . Highest Corruption 27 | . . . . . . . 2 6 24 27 Average Corruption 9 | . . . . . . . 1 4 14 24 Corruption Purged . | . . . . . . . . . . . Corruption Blocked . | . . . . . . . . . . . Effects 80 | . . . . . . . 1 39 7 33 Message Errors 23 | . . . . . . . . 8 4 11 Matter Fused 17 | . . . . . . . 1 9 . 7 Heat Flow Errors 9 | . . . . . . . . 2 . 7 Energy Discharges 7 | . . . . . . . . 6 1 . Data Loss (minor) 12 | . . . . . . . . 7 1 4 Data Loss (major) 2 | . . . . . . . . 1 . 1 Misfires 3 | . . . . . . . . 2 . 1 Alerts 3 | . . . . . . . . 2 . 1 Misdirections 2 | . . . . . . . . . 1 1 Weapon Failures 2 | . . . . . . . . 2 . . Overload Shots . | . . . . . . . . . . . Overflow Damage 17 | . . . . . . . . . . 17 Projectiles . | . . . . . . . . . . . Explosions 17 | . . . . . . . . . . 17 Melee . | . . . . . . . . . . . Knockbacks 1 | . . . . . . . . 1 . . Impact 1 | . . . . . . . . 1 . . Kinetic . | . . . . . . . . . . . Secondary . | . . . . . . . . . . . Self-Inflicted Damage 22 | . . . . . . . . . . 22 Shots 1 | . . . . . . . . . . 1 Rammed 23 | . 6 2 1 4 . 1 1 3 . 5 Targets Rammed 24 | . 6 2 1 4 . 1 1 4 . 5 Kicked . | . . . . . . . . . . . Crushed 1 | . . . . . . . . 1 . . Highest Temperature 309 | 82 12 39 15 16 . 104 109 230 . 309 Average Temperature 32 | 30 6 10 5 7 . 59 16 24 . 117 Received Heat Transfer 2274 | . 18 36 18 54 . 162 909 420 . 657 Effects 2 | . . . . . . . . . . 2 Interference 2 | . . . . . . . . . . 2 Siege Activations . | . . . . . . . . . . . Martial Activations . | . . . . . . . . . . . Shielding Activations . | . . . . . . . . . . . Robots Disrupted . | . . . . . . . . . . . Combat Hostiles . | . . . . . . . . . . . Robots Corrupted . | . . . . . . . . . . . Combat Hostiles . | . . . . . . . . . . . Parts Fried . | . . . . . . . . . . . Impact Corruptions . | . . . . . . . . . . . Robots Melted . | . . . . . . . . . . . Combat Hostiles . | . . . . . . . . . . . Parts Melted . | . . . . . . . . . . . Heat Transferred 222 | 222 . . . . . . . . . . Parts Sabotaged . | . . . . . . . . . . . Parts Stolen . | . . . . . . . . . . . Parts Stripped . | . . . . . . . . . . . Power Chain Reactions . | . . . . . . . . . . . Alert | -11 -10 -10 -9 -9 -9 -8 -8 -7 -7 -7 ------- Run | Yrd Mat Min Mat Min Exi Min Mat Fac Was Fac Maximum Alert Level 1 | . . . . . . . 1 1 . . Low Security (%) 93 | 100 100 100 100 100 . 100 97 80 100 100 Level 1 6 | . . . . . . . 2 19 . . Level 2 . | . . . . . . . . . . . Level 3 . | . . . . . . . . . . . Level 4 . | . . . . . . . . . . . Level 5 . | . . . . . . . . . . . High Security . | . . . . . . . . . . . Max Security . | . . . . . . . . . . . Peak Influence 242 | 10 133 124 81 98 . 63 207 242 67 49 Initial 91 | . . 43 . . . . 4 91 67 . Average 56 | 1 44 31 32 12 . 25 96 81 36 3 Influence Increases 2477 | 20 215 164 183 215 . 73 780 697 . 130 Destroy 0b10 Robot/C 1628 | . 160 120 100 160 . 60 500 480 . 48 Destroy 0b10 Robot/NC 196 | 20 10 . 35 5 . . 70 52 . 4 Destroy Leader 374 | . 30 20 38 20 . 10 134 114 . 8 Allied During Kill 35 | . . 9 8 15 . 3 . . . . Successful Hack 24 | . 12 . . . . . 12 . . . Disable Machine 15 | . . . . . . . 15 . . . Destroy Structure 25 | . 3 . 2 . . . 4 3 . 13 Lose Combat Pursuer 180 | . . 15 . 15 . . 45 48 . 57 Influence Decreases 2477 | 20 104 275 183 215 . 60 590 706 194 130 Entered New Map 316 | . . 68 . . . . 9 112 127 . Time Decay 1853 | 20 104 207 183 195 . 50 504 493 47 50 Lost Part 281 | . . . . . . 10 70 101 20 80 Lost Ally 20 | . . . . 20 . . . . . . Purge Threat 7 | . . . . . . . 7 . . . Squads Dispatched 21 | . 3 . . . . . 6 10 . 2 Investigation 5 | . 1 . . . . . 2 1 . 1 Extermination 5 | . . . . . . . . 4 . 1 Reinforcement 9 | . 2 . . . . . 4 3 . . Assault 2 | . . . . . . . . 2 . . Garrison . | . . . . . . . . . . . Intercept . | . . . . . . . . . . . Searches Triggered . | . . . . . . . . . . . Construction Impeded . | . . . . . . . . . . . Haulers Reinforced 1 | . . . . . . . . 1 . . Active Scanning Responses . | . . . . . . . . . . . Cargo Convoy Interrupts 1 | . . . . . . . . 1 . . Stealth | -11 -10 -10 -9 -9 -9 -8 -8 -7 -7 -7 --------- Run | Yrd Mat Min Mat Min Exi Min Mat Fac Was Fac Distress Signals 10 | . 1 1 1 . . . 3 4 . . Communications Jammed . | . . . . . . . . . . . Distress Signals . | . . . . . . . . . . . Times Spotted 150 | . 11 8 8 9 . 3 43 52 6 10 Peak Tracking Total 7 | . 5 3 2 3 . 3 5 4 6 7 Tactical Retreats 9 | . . 1 . 1 . . 3 3 . 1 Traps | -11 -10 -10 -9 -9 -9 -8 -8 -7 -7 -7 ------- Run | Yrd Mat Min Mat Min Exi Min Mat Fac Was Fac Traps Triggered 14 | . 1 . 1 . . . 3 7 . 2 Indirectly . | . . . . . . . . . . . Trap Hack Attempts . | . . . . . . . . . . . Triggered . | . . . . . . . . . . . Disarmed . | . . . . . . . . . . . Reprogrammed . | . . . . . . . . . . . Reused . | . . . . . . . . . . . Traps Extracted . | . . . . . . . . . . . Installed . | . . . . . . . . . . . Triggered . | . . . . . . . . . . . Machines | -11 -10 -10 -9 -9 -9 -8 -8 -7 -7 -7 ---------- Run | Yrd Mat Min Mat Min Exi Min Mat Fac Was Fac Machines Disabled 1 | . . . . . . . 1 . . . Max in Single Turn 1 | . . . . . . . 1 . . . Garrison Access 2 | . . . . . . . . 1 . 1 Machines Repaired . | . . . . . . . . . . . Machines Dismantled . | . . . . . . . . . . . Machines Sabotaged . | . . . . . . . . . . . Overloaded Fab Kills . | . . . . . . . . . . . Hacking | -11 -10 -10 -9 -9 -9 -8 -8 -7 -7 -7 --------- Run | Yrd Mat Min Mat Min Exi Min Mat Fac Was Fac Machines Accessed 23 | . 2 . 1 . 3 . 8 3 . 6 Terminals 8 | . 1 . 1 . . . 5 . . 1 Fabricators 2 | . . . . . . . . 1 . 1 Repair Stations 4 | . . . . . . . 1 1 . 2 Recycling Units 3 | . 1 . . . . . 1 . . 1 Scanalyzers 2 | . . . . . . . 1 1 . . Garrison Access 1 | . . . . . . . . . . 1 Total Hacks 56 | . 5 . 2 . 17 . 18 7 . 7 Successful 39 | . 4 . 1 . 17 . 11 5 . 1 Failed 16 | . 1 . 1 . . . 6 2 . 6 Catastrophic 3 | . . . . . . . . 1 . 2 Database Lockouts 1 | . . . . . . . 1 . . . Manual 1 | . . . . . 1 . . . . . Terminals 15 | . 3 . 2 . . . 9 . . 1 Fabricators 2 | . . . . . . . . 1 . 1 Repair Stations 8 | . . . . . . . 4 2 . 2 Recycling Units 5 | . 2 . . . . . 2 . . 1 Scanalyzers 7 | . . . . . . . 3 4 . . Garrison Access 2 | . . . . . . . . . . 2 Terminal Hacks 25 | . 2 . 1 . 17 . 5 . . . Record 16 | . . . . . 16 . . . . . Emergency Access Points 1 | . . . 1 . . . . . . . Unreport Threat 1 | . . . . . . . 1 . . . Recall Investigation 1 | . . . . . . . 1 . . . Hauler Manifests 3 | . 1 . . . . . 2 . . . Registered Components 2 | . 1 . . . . . 1 . . . Proto ID Catalog 1 | . . . . . 1 . . . . . Fabricator Hacks 1 | . . . . . . . . 1 . . Network Status 1 | . . . . . . . . 1 . . Repair Station Hacks 3 | . . . . . . . 3 . . . Scan Component 2 | . . . . . . . 2 . . . Repair 1 | . . . . . . . 1 . . . Recycling Unit Hacks 3 | . 2 . . . . . 1 . . . Retrieve Components 3 | . 2 . . . . . 1 . . . Scanalyzer 6 | . . . . . . . 2 4 . . Retrieve Study 6 | . . . . . . . 2 4 . . Garrison Access Hacks 1 | . . . . . . . . . . 1 Seal Access 1 | . . . . . . . . . . 1 Unauthorized Hacks . | . . . . . . . . . . . Terminals . | . . . . . . . . . . . Fabricators . | . . . . . . . . . . . Repair Stations . | . . . . . . . . . . . Recycling Units . | . . . . . . . . . . . Scanalyzers . | . . . . . . . . . . . Garrison Access . | . . . . . . . . . . . Data Cores Recovered . | . . . . . . . . . . . Used . | . . . . . . . . . . . Hacking Detections 13 | . 1 . 1 . . . 4 3 . 4 Full Trace Events 3 | . . . . . . . 2 1 . . Feedback Events . | . . . . . . . . . . . Feedback Blocked . | . . . . . . . . . . . Robot Schematics Acquired . | . . . . . . . . . . . Robots Built . | . . . . . . . . . . . Authchips . | . . . . . . . . . . . Time . | . . . . . . . . . . . Total Robot Build Rating . | . . . . . . . . . . . Part Schematics Acquired . | . . . . . . . . . . . Parts Built . | . . . . . . . . . . . Authchips . | . . . . . . . . . . . Time . | . . . . . . . . . . . Total Part Build Rating . | . . . . . . . . . . . Part Studies Acquired 6 | . . . . . . . 2 4 . . Parts Repaired 1 | . . . . . . . 1 . . . Time 32 | . . . . . . . 32 . . . Parts Recycled . | . . . . . . . . . . . Recycled Matter . | . . . . . . . . . . . Retrieved Matter . | . . . . . . . . . . . Retrieved Components 22 | . 13 . . . . . 9 . . . Parts Scanalyzed . | . . . . . . . . . . . Part Schematics Acquired . | . . . . . . . . . . . Parts Damaged . | . . . . . . . . . . . Bothacking | -11 -10 -10 -9 -9 -9 -8 -8 -7 -7 -7 ------------ Run | Yrd Mat Min Mat Min Exi Min Mat Fac Was Fac Used RIF Installer . | . . . . . . . . . . . Robots Hacked . | . . . . . . . . . . . Non-combat . | . . . . . . . . . . . Combat . | . . . . . . . . . . . Robot Hacks Applied . | . . . . . . . . . . . Relay Couplers Released 3 | . . . . . . . . 1 . 2 Machine Destruction 3 | . . . . . . . . 1 . 2 Fabnet Peak Effective % . | . . . . . . . . . . . Robots Rewired . | . . . . . . . . . . . Allies Hacked . | . . . . . . . . . . . Hacks Repelled . | . . . . . . . . . . . Allies | -11 -10 -10 -9 -9 -9 -8 -8 -7 -7 -7 -------- Run | Yrd Mat Min Mat Min Exi Min Mat Fac Was Fac Total Allies 5 | . . 2 . 3 . . . . . . Largest Group 3 | . . 2 1 3 2 1 1 . . . Highest-Rated Group 50 | . . 50 31 40 24 8 8 . . . Highest-Rated Ally 31 | . . 31 31 16 16 8 8 . . . Total Orders . | . . . . . . . . . . . Ally Attacks 80 | . . 15 20 34 . 7 4 . . . Total Damage 981 | . . 169 316 408 . 55 33 . . . Kills 16 | . . 4 6 6 . . . . . . Allies Corrupted . | . . . . . . . . . . . Allies Melted . | . . . . . . . . . . . Intel | -11 -10 -10 -9 -9 -9 -8 -8 -7 -7 -7 ------- Run | Yrd Mat Min Mat Min Exi Min Mat Fac Was Fac Active Infowar (turns) 4305 | 5 475 785 447 1524 1036 33 . . . . Seismic 4305 | 5 475 785 447 1524 1036 33 . . . . Robot Analysis Total . | . . . . . . . . . . . Derelict Logs Recovered 4 | . . 2 . 2 . . . . . . Drone Launches . | . . . . . . . . . . . Drone Recoveries . | . . . . . . . . . . . Exploration | -11 -10 -10 -9 -9 -9 -8 -8 -7 -7 -7 ------------- Run | Yrd Mat Min Mat Min Exi Min Mat Fac Was Fac Turns Passed 10223 | 158 475 785 447 1524 1036 147 2264 2580 118 689 Spaces Moved 4235 | 91 233 469 174 610 432 44 869 801 88 424 Core 47 | 37 . . . . . . . 9 . 1 Treads 3677 | 54 233 469 174 610 432 44 869 792 . . Legs . | . . . . . . . . . . . Wheels . | . . . . . . . . . . . Hover 511 | . . . . . . . . . 88 423 Flight . | . . . . . . . . . . . Fastest Speed 50 | 50 160 160 160 240 240 240 160 162 104 102 Average Speed 196 | 122 160 160 217 240 240 240 183 244 107 107 Slowest Speed 1150 | 200 160 160 320 240 240 240 560 1150 112 850 Overloaded Moves . | . . . . . . . . . . . Propulsion Burnouts . | . . . . . . . . . . . Robots Hopped . | . . . . . . . . . . . Potential Cave-ins . | . . . . . . . . . . . Cave-ins Triggered . | . . . . . . . . . . . Exploration Rate (%) 44 | 3 32 78 18 99 78 12 66 20 77 9 Regions Visited 10 Branch Regions 4 Pre-discovered Areas . | . . . . . . . . . . . Known Exits Taken 1 | . . . . . . . 1 . . . Unknown Exits Taken 7 | 1 1 1 1 1 1 1 . . . . Scrap Searched 4 | . . 1 . 2 . 1 . . . . Spaces Dug . | . . . . . . . . . . . Terrain Destroyed 16 | . . . . . . . . . . 16 Melee . | . . . . . . . . . . . Projectile . | . . . . . . . . . . . AOE 16 | . . . . . . . . . . 16 Terrain Rammed . | . . . . . . . . . . . Walls Destroyed . | . . . . . . . . . . . Machines Disabled . | . . . . . . . . . . . Actions | -11 -10 -10 -9 -9 -9 -8 -8 -7 -7 -7 --------- Run | Yrd Mat Min Mat Min Exi Min Mat Fac Was Fac Total 5501 | 114 302 485 208 653 432 69 1302 1192 113 631 Wait 595 | . 14 4 . 28 . 13 218 157 15 146 Move 4226 | 90 232 468 173 609 431 43 868 801 87 424 Hop . | . . . . . . . . . . . Pick Up 83 | 7 11 . 9 2 1 . 22 26 . 5 Fast Attach 28 | 6 2 . 1 . . . 6 11 . 2 Attach 46 | 1 . . 1 1 . 2 8 16 5 12 Detach 3 | . 2 . . . . . 1 . . . Swap 35 | . 1 . 3 1 . . 10 13 1 6 Drop 60 | . 11 . . . . . 13 26 5 5 Fire 388 | 10 23 11 20 8 . 10 155 138 . 13 Melee . | . . . . . . . . . . . Ram 5 | . . . . . . . . . . 5 Kick . | . . . . . . . . . . . Crush 19 | . 6 2 1 4 . 1 1 4 . . Escape Stasis 13 | . . . . . . . . . . 13 Rewire . | . . . . . . . . . . . Trap . | . . . . . . . . . . . Miscellaneous . | . . . . . . . . . . . Route ------- -11/Scrapyard -10/Materials -10/Mines (discovered 2 exits: *Mat x2) -9/Materials -9/Mines (discovered 3 exits: *Mat x2 / *Exi) -9/Exiles -8/Mines (discovered 2 exits: *Mat x2) -8/Materials (discovered 4 exits: *Fac x3 / [*Sto]) -7/Factory -7/Waste -7/Factory History --------- Turn | Location | Event 34 | -11/Scrapyard | Discovered new exit (range 16) 159 | -11/Scrapyard | Entered Materials 314 | -10/Materials | Build established: Mutant 578 | -10/Materials | Discovered new exit (range 7) 634 | -10/Materials | Entered Mines 787 | -10/Mines | Discovered new exit (range 8) 855 | -10/Mines | Assembled infested the area 860 | -10/Mines | Assisted by a Guerilla fighting off Assembled 901 | -10/Mines | Learned Materials non-interactive machine intel 1123 | -10/Mines | Learned 2 Materials zone layouts 1344 | -10/Mines | Discovered new exit (range 5) 1419 | -10/Mines | Entered Materials 1419 | -9/Materials | Accompanied by 1 ally 1419 | -9/Materials | Evolved 2 slots: Propulsion x1, Utility x1 1421 | -9/Materials | Loaded intel: 54 non-interactive machine locations 1424 | -9/Materials | Led the pair of lost Derelicts to an unsafe place 1811 | -9/Materials | Discovered new exit (range 8) 1866 | -9/Materials | Entered Mines 2008 | -9/Mines | Learned Materials stockpile data 2094 | -9/Mines | Assisted by bots powering up and referring to "LRC-V3" 2141 | -9/Mines | Found a hidden stash of uninstalled traps 2187 | -9/Mines | Discovered new exit (range 12) 2346 | -9/Mines | Discovered new exit (range 10) 2646 | -9/Mines | Build established: Scavenger-Mutant 3381 | -9/Mines | Deemed a non-threat by the Exiles lab entrance 3381 | -9/Mines | Discovered new exit (range 5) 3390 | -9/Mines | Entered Exiles 3390 | -9/Exiles | Accompanied by 2 allies 3450 | -9/Exiles | Met 8R-AWN 3489 | -9/Exiles | Met EX-HEX 3616 | -9/Exiles | Met EX-BIN 3688 | -9/Exiles | Aligned with FarCom system 3690 | -9/Exiles | Given EX-Vault access code 3933 | -9/Exiles | Opened EX-Vault 3962 | -9/Exiles | Found 0b10 Alert Chip 4013 | -9/Exiles | Warned to stay clear of 0b10 Research branches 4078 | -9/Exiles | Met EX-DEC 4156 | -9/Exiles | Visited The Gauntlet 4395 | -9/Exiles | Discovered new exit (range 14) 4426 | -9/Exiles | Left Exiles lab with 0b10 Alert Chip 4426 | -9/Exiles | Entered Mines 4426 | -8/Mines | Accompanied by 2 allies 4484 | -8/Mines | Discovered new exit (range 14) 4484 | -8/Mines | Discovered new exit (range 5) 4501 | -8/Mines | Lost 3 parts (2n1u) 4573 | -8/Mines | Entered Materials 4573 | -8/Materials | Accompanied by 1 ally 4573 | -8/Materials | Evolved 2 slots: Propulsion x2 4574 | -8/Materials | Identified exit to Factory 4772 | -8/Materials | Build established: Mutant 4783 | -8/Materials | Lost 5 parts (1p2n1u1w) 5035 | -8/Materials | Discovered exit to Factory (range 8) 5365 | -8/Materials | Discovered new exit (range 4) 5522 | -8/Materials | Repaired Med. Armor Plating 6210 | -8/Materials | Discovered exit to Factory (range 16) 6234 | -8/Materials | Central database locked down 6837 | -8/Materials | Entered Factory 6837 | -7/Factory | Evolved 2 slots: Power x1, Utility x1 7371 | -7/Factory | Lost 3 parts (1p2u) 7676 | -7/Factory | Lost 3 parts (2n1u) 8066 | -7/Factory | Cargo convoy interrupted 9417 | -7/Factory | Sucked down chute 9417 | -7/Factory | Entered Waste 9424 | -7/Waste | Spotted C-40 Crusher 9432 | -7/Waste | EMP discharged 9432 | -7/Waste | System corruption reached 10% 9441 | -7/Waste | Spotted C-40 Crusher 9473 | -7/Waste | Spotted C-40 Crusher 9483 | -7/Waste | Spotted C-40 Crusher 9484 | -7/Waste | Crushed by Compactor (1 part destroyed, 1 dropped) 9499 | -7/Waste | Spotted C-40 Crusher 9506 | -7/Waste | Spotted C-40 Crusher 9511 | -7/Waste | Crushed by Compactor (1 part destroyed, 1 dropped) 9513 | -7/Waste | Discovered new exit (range 16) 9532 | -7/Waste | EMP discharged 9535 | -7/Waste | Entered Factory 9829 | -7/Factory | Build established: Scavenger-Mutant 10143 | -7/Factory | Core integrity fell below 50% 10201 | -7/Factory | Core integrity fell below 20% 10224 | -7/Factory | Destroyed by P-60 Hacker with Shock Rifle Last Messages --------------- 10187_ Critical hit (Burn: +37). 10188_ Aerolev Unit destroyed. 10188_ Critical hit (Burn: +37). 10190_ G-47 Trooper destroyed. 10190_ Destroyed Imp. Heat Sink. 10190_ G-47 Trooper destroyed. 10191_ Chain reaction triggered in Lgt. Angular Momentum Engine. 10191_ G-50 Soldier destroyed. 10191_ G-47 Trooper destroyed. 10191_ Relay Coupler [Brawler] tumbles out of Garrison Access. 10192_ Acquired 42 matter. 10195_ Enh. Autogun destroyed. 10198_ Missile Launcher destroyed. 10200_ Critical hit (Burn: +37). 10201_ The unstable cave ceiling collapses. 10205_ Acquired 26 matter. 10206_ System corrupted: Component data lost. 10208_ Imp. Hover Unit+ destroyed. 10221_ /E9H|R6YP95GKPMSAE%4KVWB:VKW#V